Cogmind - Beta 13 @@@ ROGUE MODE // 2024.04.18 @ 18:32:54 Player: albenzo Result: Core destroyed Performance ------------- Evolutions (0) 0 Regions Visited (2) 400 Robots Destroyed (17) 85 Value Destroyed (463) 463 Prototype IDs (1) 20 Alien Tech Used (0) 0 Bonus (0) 0 TOTAL SCORE: 968 Bonus ------- None Cogmind --------- Core Integrity 0/250 Matter 215/300 Energy 100/100 System Corruption 2% Temperature Critical (817) Movement Core (150) Ox2 Location -10/Mines Parts ------- > --- POWER (1) -------- (None) > --- PROPULSION (2) --- (None) > --- UTILITY (2) ------ Small Storage Unit > --- WEAPON (2) ------- Particle Gun > --- INVENTORY (8) ---- Light Nuclear Core Light Treads Structural Scanner Hacking Suite Medium Laser Peak State ------------ > --- POWER ------------ Light Nuclear Core > --- PROPULSION ------- Light Treads Light Treads > --- UTILITY ---------- Improved Heat Sink Small Storage Unit > --- WEAPON ----------- Improved EM Shotgun Particle Gun > --- INVENTORY -------- Ion Engine Light Treads Aluminum Leg Compact Wheel Structural Scanner Hacking Suite Light Assault Rifle Light Assault Rifle [Rating: 15] Favorites ----------- Power Light Nuclear Core Engine Ion Engine Power Core Light Nuclear Core Propulsion Light Treads Treads Light Treads Utility Small Storage Unit Device Improved Heat Sink Storage Small Storage Unit Protection Light Armor Plating Weapon Particle Gun Energy Gun Particle Gun Energy Cannon Beam Cannon Ballistic Gun Light Assault Rifle Build | -11 -10 -10 ------- Run | Yrd Mat Min Slots Evolved . | . . . Power . | . . . Propulsion . | . . . Utility . | . . . Weapon . | . . . Parts Attached 27 | 8 16 3 Power 3 | 1 2 . Engine 1 | 1 . . Core 2 | . 2 . Reactor . | . . . Propulsion 5 | 2 2 1 Treads 5 | 2 2 1 Leg . | . . . Wheel . | . . . Hover . | . . . Flight . | . . . Utility 5 | 2 2 1 Device 3 | 1 2 . Storage 1 | 1 . . Processor . | . . . Hackware . | . . . Protection 1 | . . 1 Artifact . | . . . Weapon 14 | 3 10 1 Energy Gun 10 | 1 9 . Energy Cannon 1 | . . 1 Ballistic Gun 3 | 2 1 . Ballistic Cannon . | . . . Launcher . | . . . Special Weapon . | . . . Impact Weapon . | . . . Slashing Weapon . | . . . Piercing Weapon . | . . . Special Melee Weapon . | . . . Unidentified Prototypes 1 | . 1 . Parts Lost 8 | . 1 7 Power 1 | . . 1 Propulsion 2 | . . 2 Utility 3 | . 1 2 Weapon 2 | . . 2 Highest Loss Streak 4 | . 1 4 To Critical Strikes 1 | . . 1 Average Slot Usage (%) 98 | . 98 98 Engine 1 | . 1 . Core 12 | . 11 14 Treads 27 | . 27 27 Device 13 | . 13 12 Storage 14 | . 14 14 Energy Gun 24 | . 24 26 Ballistic Gun 2 | . 3 . Naked Turns . | . . . Heaviest Build 19 | 13 17 19 Greatest Support 40 | 40 40 40 Greatest Overweight (x) . | . . . Average Overweight (x) . | . . . Largest Inventory Capacity 8 | 8 8 8 Average Capacity 7 | 7 8 8 Most Carried 8 | 7 8 8 Average Carried 7 | 5 7 7 Final Capacity 8 | 8 8 8 Final Carried 8 | 7 8 5 Class Distribution -------------------- 61% | Scavenger-Mutant 38% | Mutant Dominant Class ---------------- Scavenger-Mutant | -10/Materials Scavenger-Mutant | -10/Mines Resources | -11 -10 -10 ----------- Run | Yrd Mat Min Matter Collected 513 | 259 254 . Remotely . | . . . Salvage Created 625 | 43 560 22 Parts 37 | 7 30 . Haulers Intercepted 2 | . 2 . Recyclers Shooed . | . . . Parts Field Recycled . | . . . Retrieved Matter . | . . . Parts Self-Destructed . | . . . Prevented . | . . . Kills | -11 -10 -10 ------- Run | Yrd Mat Min Combat Hostiles Destroyed 15 | . 11 4 Guns 13 | . 11 2 Cannons 2 | . . 2 Classes Destroyed 6 | 1 4 1 Tunneler 2 | 2 . . Hauler 2 | . 2 . Operator 1 | . 1 . Watcher 1 | . 1 . Grunt 11 | . 11 . Assembled 4 | . . 4 Best Kill Streak 4 | 1 3 4 Combat Bots Only 4 | . 2 4 Max Kills in Single Turn 2 | 1 2 2 Gunslinging 1 | . 1 1 Exploded . | . . . Melee . | . . . Uniques/NPCs Destroyed . | . . . Combat | -11 -10 -10 -------- Run | Yrd Mat Min Hostile Shots Fired 105 | . 45 60 Missed 24 | . 13 11 Damage Taken 1295 | . 421 874 Core 289 | . 107 182 Absorbed by Shields . | . . . Regen/Repaired (Parts) 189 | . 189 . Core Remaining (%) 100 | 100 . . Volleys Fired 76 | 5 47 24 Largest 2 | 2 2 2 Hottest 130 | 40 130 130 Shots Fired 140 | 10 94 36 Gun 123 | 10 94 19 Cannon 17 | . . 17 Launcher . | . . . Special . | . . . Kinetic 44 | 10 34 . Thermal 96 | . 60 36 Explosive . | . . . Electromagnetic . | . . . Robot Hit Streak 10 | 3 10 3 Robot Miss Streak 11 | 1 3 11 Penetration Max . | . . . Secondary Targets 2 | . 1 1 Max Gunslinging Chain 1 | . 1 1 Shots Hit Robots 80 | 6 62 12 Core Hits 38 | 4 27 7 Critical Kills . | . . . Critical Parts Destroyed 2 | . 2 . Critical Strikes 4 | . 4 . Burn 2 | . 2 . Destroy 2 | . 2 . Melee Attacks . | . . . Impact . | . . . Slashing . | . . . Piercing . | . . . Sneak Attacks . | . . . Combat Hostiles . | . . . Follow-up Attacks . | . . . Damage Inflicted 1067 | 51 820 196 Guns 962 | 51 820 91 Cannons 105 | . . 105 Explosions . | . . . Melee . | . . . Ramming . | . . . Kinetic 278 | 51 227 . Thermal 789 | . 593 196 Explosive . | . . . Electromagnetic . | . . . Impact . | . . . Slashing . | . . . Piercing . | . . . Highest Corruption 2 | . . 2 Average Corruption 2 | . . 2 Corruption Purged . | . . . Corruption Blocked . | . . . Effects 2 | . . 2 Message Errors 1 | . . 1 Parts Rejected 1 | . . 1 Overload Shots . | . . . Overflow Damage . | . . . Projectiles . | . . . Explosions . | . . . Melee . | . . . Knockbacks . | . . . Impact . | . . . Kinetic . | . . . Secondary . | . . . Self-Inflicted Damage . | . . . Shots . | . . . Rammed . | . . . Targets Rammed . | . . . Kicked . | . . . Crushed . | . . . Highest Temperature 817 | . 183 817 Average Temperature 143 | . 45 326 Received Heat Transfer 240 | . 240 . Effects 12 | . . 12 Shutdowns 3 | . . 3 Energy Bleed 1 | . . 1 Interference 1 | . . 1 Matter Decay 2 | . . 2 Short Circuit 1 | . . 1 Damage (minor) 2 | . . 2 Damage (core) 2 | . . 2 Siege Activations . | . . . Robots Corrupted . | . . . Combat Hostiles . | . . . Parts Fried . | . . . Impact Corruptions . | . . . Robots Melted 1 | . 1 . Combat Hostiles . | . . . Parts Melted 2 | . 2 . Heat Transferred 2109 | . 1665 444 Parts Sabotaged . | . . . Parts Stolen . | . . . Parts Stripped . | . . . Power Chain Reactions . | . . . Alert | -11 -10 -10 ------- Run | Yrd Mat Min Peak Influence 220 | 10 220 . Initial 6 | . 6 . Average 44 | 2 60 . Maximum Alert Level 1 | . 1 . Low Security (%) 99 | 100 99 100 Level 1 . | . . . Level 2 . | . . . Level 3 . | . . . Level 4 . | . . . Level 5 . | . . . High Security . | . . . Max Security . | . . . Squads Dispatched 2 | . 2 . Investigation . | . . . Extermination . | . . . Reinforcement 2 | . 2 . Assault . | . . . Garrison . | . . . Intercept . | . . . Searches Triggered . | . . . Construction Impeded . | . . . Haulers Reinforced . | . . . Active Scanning Responses . | . . . Cargo Convoy Interrupts . | . . . Stealth | -11 -10 -10 --------- Run | Yrd Mat Min Distress Signals 3 | . 3 . Communications Jammed . | . . . Distress Signals . | . . . Times Spotted 35 | . 20 15 Peak Tracking Total 9 | . 3 9 Tactical Retreats 3 | . 1 2 Traps | -11 -10 -10 ------- Run | Yrd Mat Min Traps Triggered 1 | . 1 . Indirectly . | . . . Trap Hack Attempts . | . . . Triggered . | . . . Disarmed . | . . . Reprogrammed . | . . . Reused . | . . . Traps Extracted . | . . . Installed . | . . . Triggered . | . . . Machines | -11 -10 -10 ---------- Run | Yrd Mat Min Machines Disabled . | . . . Max in Single Turn . | . . . Machines Repaired . | . . . Machines Dismantled . | . . . Machines Sabotaged . | . . . Overloaded Fab Kills . | . . . Hacking | -11 -10 -10 --------- Run | Yrd Mat Min Machines Accessed 7 | . 7 . Terminals 5 | . 5 . Fabricators . | . . . Repair Stations 1 | . 1 . Recycling Units 1 | . 1 . Scanalyzers . | . . . Garrison Access . | . . . Total Hacks 24 | . 24 . Successful 15 | . 15 . Failed 9 | . 9 . Catastrophic 1 | . 1 . Database Lockouts . | . . . Manual 12 | . 12 . Terminals 15 | . 15 . Fabricators . | . . . Repair Stations 7 | . 7 . Recycling Units 2 | . 2 . Scanalyzers . | . . . Garrison Access . | . . . Terminal Hacks 7 | . 7 . Part Schematic 3 | . 3 . Terminal Index 1 | . 1 . Scanalyzer Index 1 | . 1 . Transport Status 1 | . 1 . Registered Components 1 | . 1 . Fabricator Hacks . | . . . Repair Station Hacks 7 | . 7 . Scan Component 4 | . 4 . Repair 3 | . 3 . Recycling Unit Hacks 1 | . 1 . Retrieve Components 1 | . 1 . Scanalyzer . | . . . Garrison Access Hacks . | . . . Unauthorized Hacks . | . . . Terminals . | . . . Fabricators . | . . . Repair Stations . | . . . Recycling Units . | . . . Scanalyzers . | . . . Garrison Access . | . . . Data Cores Recovered . | . . . Used . | . . . Hacking Detections 6 | . 6 . Full Trace Events . | . . . Feedback Events . | . . . Feedback Blocked . | . . . Robot Schematics Acquired . | . . . Robots Built . | . . . Authchips . | . . . Time . | . . . Total Robot Build Rating . | . . . Part Schematics Acquired 3 | . 3 . Parts Built . | . . . Authchips . | . . . Time . | . . . Total Part Build Rating . | . . . Parts Repaired 3 | . 3 . Time 90 | . 90 . Parts Recycled . | . . . Recycled Matter . | . . . Retrieved Matter . | . . . Retrieved Components 9 | . 9 . Parts Scanalyzed . | . . . Part Schematics Acquired . | . . . Parts Damaged . | . . . Bothacking | -11 -10 -10 ------------ Run | Yrd Mat Min Used RIF Installer . | . . . Robots Hacked . | . . . Non-combat . | . . . Combat . | . . . Robot Hacks Applied . | . . . Relay Couplers Released . | . . . Fabnet Peak Effective % . | . . . Robots Rewired . | . . . Allies Hacked . | . . . Hacks Repelled . | . . . Allies | -11 -10 -10 -------- Run | Yrd Mat Min Total Allies . | . . . Largest Group . | . . . Highest-Rated Group . | . . . Highest-Rated Ally . | . . . Total Orders . | . . . Ally Attacks . | . . . Total Damage . | . . . Kills . | . . . Allies Corrupted . | . . . Allies Melted . | . . . Intel | -11 -10 -10 ------- Run | Yrd Mat Min Robot Analysis Total . | . . . Derelict Logs Recovered 1 | . . 1 Drone Launches . | . . . Drone Recoveries . | . . . Exploration | -11 -10 -10 ------------- Run | Yrd Mat Min Turns Passed 2267 | 139 1662 466 Spaces Moved 1117 | 68 800 249 Core 1 | 1 . . Treads 1116 | 67 800 249 Legs . | . . . Wheels . | . . . Hover . | . . . Flight . | . . . Fastest Speed 50 | 50 160 160 Average Speed 159 | 158 160 160 Slowest Speed 160 | 160 160 160 Overloaded Moves . | . . . Propulsion Burnouts . | . . . Robots Hopped . | . . . Cave-ins Triggered . | . . . Exploration Rate (%) 52 | 6 98 53 Regions Visited 2 Branch Regions 1 Pre-discovered Areas 1 | . . 1 Known Exits Taken . | . . . Unknown Exits Taken 2 | 1 1 . Scrap Searched 1 | . . 1 Spaces Dug . | . . . Terrain Destroyed . | . . . Melee . | . . . Projectile . | . . . AOE . | . . . Terrain Rammed . | . . . Walls Destroyed . | . . . Machines Disabled . | . . . Actions | -11 -10 -10 --------- Run | Yrd Mat Min Total 1461 | 88 1092 281 Wait 210 | . 205 5 Move 1115 | 67 799 249 Hop . | . . . Pick Up 17 | 7 10 . Fast Attach 18 | 7 11 . Attach 4 | 1 . 3 Detach 1 | 1 . . Swap 5 | . 5 . Drop 15 | . 15 . Fire 76 | 5 47 24 Melee . | . . . Ram . | . . . Kick . | . . . Crush . | . . . Escape Stasis . | . . . Rewire . | . . . Trap . | . . . Miscellaneous . | . . . Route ------- -11/Scrapyard -10/Materials (discovered 4 exits: [*Mat x3] / [*Min]) -10/Mines (discovered 1 exit: [*Mat]) History --------- Turn | Location | Event 12 | -11/Scrapyard | Discovered new exit (range 16) 140 | -11/Scrapyard | Entered Materials 310 | -10/Materials | Build established: Mutant 519 | -10/Materials | Discovered new exit (range 4) 691 | -10/Materials | Discovered new exit (range 8) 1052 | -10/Materials | Build established: Scavenger-Mutant 1285 | -10/Materials | Repaired Particle Gun 1319 | -10/Materials | Repaired Particle Gun 1346 | -10/Materials | Repaired Lgt. Treads 1380 | -10/Materials | Discovered new exit (range 16) 1551 | -10/Materials | Discovered new exit (range 9) 1802 | -10/Materials | Entered Mines 1816 | -10/Mines | Learned location of Storage (-9) 2010 | -10/Mines | Discovered new exit (range 6) 2028 | -10/Mines | Learned Materials garrison access intel 2191 | -10/Mines | Assembled infested the area 2210 | -10/Mines | Core integrity fell below 50% 2246 | -10/Mines | Lost 3 parts (1n1u1w) 2260 | -10/Mines | Core integrity fell below 20% 2269 | -10/Mines | Core destroyed Last Messages --------------- 02235_ Particle Gun temporarily disabled. 02237_ Power failure, Lgt. Nuclear Core shutdown. 02238_ as-99699 destroyed. 02254_ Power failure, Lgt. Nuclear Core shutdown. 02254_ Overheating: Lgt. Treads damaged (-30). 02255_ Critical hit (Destroy). 02255_ Lgt. Treads destroyed. 02256_ Lgt. Armor Plating destroyed. 02258_ Lgt. Treads broken. 02258_ Overheating: Short circuit. 02259_ Overheating: Matter decay (-36). 02261_ Power failure, Lgt. Nuclear Core shutdown. 02261_ Overheating: Energy bleed (-17). 02262_ Overheating: Beam Cannon damaged (-55). 02266_ Beam Cannon destroyed. 02266_ R-06 Scavenger collects Lgt. Ion Engine. 02267_ Overheating: Core damaged (-37). 02267_ System corrupted: Broken Lgt. Treads rejected. 02267_ Lgt. Nuclear Core destroyed. 02269_ Overheating: Core damaged (-45). Map ----- +----------------------------------------------------+ | ?????????????????????????????????????????????????? | | ?????????????????????????????????????????????????? | | ?????????????????????????????????????????????????? | | ?????????????????????????????????????????????????? | | ?????????????????????????????????????????????????? | | ?????????????????????????????????????????????????? | | ?????????????????????????????????????????????????? | | ?????????????????????????????????????????????????? | | ?????????????????????????????????????????????????? | | ?????????????????????????????????????????????????? | | ?????????????????????????????????????????????????? | | ?????????????????????????????????????????????????? | | ?????????????????????????????????????????????????? | | ??????????????????????????????###????????????????? | | ?????????????????????????????? ???????##???????? | | ??????????????????????????????# #?????# ##??????? | | ??????????????????????????????# ###### #??????? | | ????????????????????????????### ## ##?????? | | ?????????????????????????#### #?????? | | ??????####???????????????? ]= ?????? | | ?????## ##???????????????? =%% ????? | | ????## #?????????????????# !% % ????? | | ##### #?????????????????# % ????? | | #?????????????##### % ????????? | | #??######?????# a% %# ##???????????? | | ####### ##?## ##????#@##### #???????????? | | ??????## #?## #????# #?## #???????????? | | ???????# #?# ##????# #?# ##???????????? | | ???????# #?# ###?????# #?# ####????????????? | | ?#####?# #?# ##???????# #?# ##???????????????? | | ?# ### #?## ##???????#a### ######???????????? | | ?# #??# ##??????# ## ## ##??????????? | | ## #?## #??????#=## #??????????? | | # ####### #??????#!% #??????????? | | #???# #??????# ### ##??????????? | | ##??# #??????#r#?## ##???????????? | | #??# ##?????# #??## ##????????????? | | ## #### #?????# #???# ##?????????????? | | ?## ## #?????# #???## ##??????????????? | | #### #####?# #????###???????????????? | | #?# ### ### #??????????????????????? | | #?# """ ## ## #??????????????????????? | | #?## """ #??????????????????????? | | #??## """ #####??????????????????????? | | #???## ####??????????????????????????? | | #????#### ##?????????????????????????????? | | ##???????### ##??????????????????????????????? | | ???????????## ##???????????????????????????????? | | ????????????# ##????????????????????????????????? | | ????????????# #?????????????????????????????????? | +----------------------------------------------------+ Best States ------------- Heat Dissipation 39 Energy Generation 14 Energy Capacity 250 Matter Stores 300 Matter Capacity 300 Sight Range 16 Terrain Scan Density 10 Armor Coverage 150 Evasion (%) 40 Recoil Reduction 2 Item Schematics ----------------- Sml. Storage Unit | -10/Materials | Hacked Med. Storage Unit | -10/Materials | Hacked Structural Scanner | -10/Materials | Hacked Robot Schematics ------------------ None Fabricated ------------ Nothing Alien Tech Used ----------------- None Achievements -------------- None Challenges ------------ None Game ------ Seed PhaseWeightPick Manual? 0 Play Time 00:22:05 Cumulative 116.5 hours Start 2024.04.18 @ 18:12:03 End 2024.04.18 @ 18:32:54 Sessions 1 Manual Loads 0 Difficulty Rogue Special Mode None Game No. 98 Rogue 98 Adventurer 0 Explorer 0 Win Type - Total 7 Types 6/0/1/0/0/0/0/0/0 Lore% 64 Gallery% 64 Achievement% 57 Wizard Run 0 Options --------- Layout 0 ASCII 0 Keyboard 1 Movement Vi Keybinds 0 Fullscreen 1 Font 24/Smallcaps Map View 76x50 Zoom Use 0% Tactical HUD 1 Map Filters NONE Filters NONE Steam 1 RUN: 5a295417-2d0c-4ae0-9675-9edff3bd2fe9